fUSD/lending_fUSD_20241108
["ID","MTS","AMOUNT","RATE_DAILY","PERIOD"]
[341629318,1731046234844,-500.0,0.00027459,2]
[341629319,1731046234854,-500.0,0.00027459,2]
[341629320,1731046234864,-619.99,0.00027459,2]
[341629321,1731046234873,-704.69,0.00027459,2]
[341629322,1731046234882,-676.22,0.00027459,2]
[341629323,1731046234892,-500.0,0.00027459,5]
[341629324,1731046234901,-500.0,0.00027459,2]
[341629325,1731046234911,-500.0,0.00027459,2]
[341629326,1731046234920,-500.0,0.00027459,2]
[341629327,1731046234929,-500.0,0.00027459,2]
[341629328,1731046234938,-500.0,0.00027459,2]
[341629329,1731046234946,-500.0,0.00027459,2]
[341629330,1731046234955,-500.0,0.00027459,2]
[341629331,1731046234965,-500.0,0.00027459,2]
[341629332,1731046234974,-500.0,0.00027459,2]
[341629333,1731046234983,-500.0,0.00027459,2]
[341629334,1731046234992,-500.0,0.00027459,2]
[341629335,1731046235002,-286.34808991,0.00027459,2]
[341629336,1731046235012,-500.0,0.00027459,2]
[341629337,1731046235023,-500.0,0.00027459,2]
[341629338,1731046235032,-500.0,0.00027459,2]
[341629339,1731046235041,-500.0,0.00027459,2]
[341629340,1731046235051,-414.95091705,0.00027459,2]
[341629341,1731046235060,-500.0,0.00027459,2]
[341629342,1731046235070,-300.0,0.00027459,2]
[341629343,1731046235080,-500.0,0.00027459,2]
[341629344,1731046235093,-500.0,0.00027459,2]
[341629345,1731046235102,-617.38,0.00027459,2]
[341629346,1731046235111,-500.0,0.00027459,2]
[341629347,1731046235120,-353.02211159,0.00027459,2]
[341629348,1731046235130,-500.0,0.00027459,2]
[341629349,1731046235140,-500.0,0.00027459,2]
[341629350,1731046235149,-500.0,0.00027459,2]
[341629351,1731046235160,-500.0,0.00027459,2]
[341629352,1731046235169,-520.04716817,0.00027459,2]
[341629353,1731046235178,-500.0,0.00027459,2]
[341629354,1731046235188,-500.0,0.00027459,2]
[341629355,1731046235197,-500.0,0.00027459,2]
[341629356,1731046235206,-500.0,0.00027459,2]
[341629357,1731046235215,-500.0,0.00027459,2]
[341629358,1731046235225,-405.25921494,0.00027459,2]
[341629359,1731046235234,-500.0,0.00027459,2]
[341629360,1731046235243,-500.0,0.00027459,2]
[341629361,1731046235253,-500.0,0.00027459,2]
[341629362,1731046235262,-500.0,0.00027459,2]
[341629363,1731046235272,-500.0,0.00027459,2]
[341629364,1731046235281,-150.0,0.00027463,2]
[341629365,1731046235291,-1989.0,0.00027463,2]
[341629366,1731046235300,-481.346,0.00027463,2]
[341629367,1731046235311,-1207.244,0.00027463,2]
[341629368,1731046235321,-1258.0,0.00027463,2]
[341629369,1731046235330,-2909.0,0.00027463,2]
[341629370,1731046235339,-813.0,0.00027463,2]
[341629371,1731046235349,-921.0,0.00027463,2]
[341629372,1731046235358,-2000.0,0.00027478,5]
[341629373,1731046235367,-532.25,0.000275,2]
[341629374,1731046235377,-263.6391737,0.000275,2]
[341629375,1731046235386,-500.0,0.00027569,2]
[341629376,1731046235396,-500.0,0.00027569,2]
[341629377,1731046235405,-500.0,0.00027569,2]
[341629378,1731046235414,-500.0,0.00027569,2]
[341629379,1731046235423,-500.0,0.00027569,2]
[341629380,1731046235432,-500.0,0.00027569,2]
[341629381,1731046235442,-500.0,0.00027569,2]
[341629382,1731046235452,-544.64,0.00027569,2]
[341629383,1731046235462,-500.0,0.00027569,2]
[341629384,1731046235471,-500.0,0.00027569,2]
[341629385,1731046235480,-500.0,0.00027569,2]
[341629386,1731046235489,-852.37,0.00027569,2]
[341629387,1731046235498,-500.0,0.00027569,2]
[341629388,1731046235507,-500.0,0.00027569,2]
[341629389,1731046235516,-500.0,0.00027569,2]
[341629390,1731046235526,-525.7,0.00027569,2]
[341629391,1731046235535,-500.0,0.00027569,2]
[341629392,1731046235544,-500.0,0.00027569,2]
[341629393,1731046235553,-500.0,0.00027569,2]
[341629394,1731046235562,-500.0,0.00027569,2]
[341629395,1731046235572,-500.0,0.00027569,2]
[341629396,1731046235581,-500.0,0.00027569,2]
[341629397,1731046235591,-500.0,0.00027569,2]
[341629398,1731046235600,-581.61,0.00027569,2]
[341629399,1731046235609,-500.0,0.00027569,2]
[341629400,1731046235618,-500.0,0.00027569,2]
[341629401,1731046235628,-500.0,0.00027569,2]
[341629402,1731046235638,-500.0,0.00027569,2]
[341629403,1731046235647,-500.0,0.00027569,2]
[341629404,1731046235656,-500.0,0.00027569,2]
[341629405,1731046235666,-662.11,0.00027569,2]
[341629406,1731046235675,-500.0,0.00027569,2]
[341629407,1731046235684,-500.0,0.00027569,2]
[341629408,1731046235693,-592.13,0.00027569,2]
[341629409,1731046235702,-500.0,0.00027569,2]
[341629410,1731046235711,-500.0,0.00027569,2]
[341629411,1731046235720,-511.70243495,0.00027569,2]
[341629412,1731046235729,-500.0,0.00027569,2]
[341629413,1731046235739,-500.0,0.00027569,2]
[341629414,1731046235748,-500.0,0.00027569,2]
[341629415,1731046235757,-500.0,0.00027569,2]
[341629416,1731046235766,-631.32,0.00027569,2]
[341629417,1731046235776,-500.0,0.00027569,2]
[341629418,1731046235786,-1017.54,0.00027569,2]
[341629419,1731046235795,-889.12,0.00027569,2]
[341629420,1731046235805,-500.0,0.00027569,2]
[341629421,1731046235814,-265.02258017,0.00027569,2]
[341629422,1731046235824,-500.0,0.00027569,2]
[341629423,1731046235833,-500.0,0.00027569,2]
[341629424,1731046235843,-321.02469741,0.00027569,2]
[341629425,1731046235852,-217.80645173,0.00027569,2]
[341629426,1731046235862,-552.99395028,0.00027569,2]
[341629427,1731046235871,-605.4,0.00027569,2]
[341629428,1731046235882,-500.0,0.00027569,2]
[341629429,1731046235891,-500.0,0.00027569,2]
[341629430,1731046235901,-500.0,0.00027569,2]
[341629431,1731046235910,-500.0,0.00027569,2]
[341629432,1731046235920,-500.0,0.00027569,2]
[341629433,1731046235930,-500.0,0.00027569,2]
[341629434,1731046235940,-500.0,0.00027569,2]
[341629435,1731046235950,-500.0,0.00027569,2]
[341629436,1731046235960,-500.0,0.00027569,2]
[341629437,1731046235970,-500.0,0.00027569,2]
[341629438,1731046235979,-500.0,0.00027569,2]
[341629439,1731046235988,-500.0,0.00027569,2]
[341629440,1731046235998,-756.06,0.00027569,2]
[341629441,1731046236007,-500.0,0.00027569,2]
[341629442,1731046236016,-1524.93,0.00027569,2]
[341629443,1731046236026,-500.0,0.00027569,2]
[341629444,1731046236036,-648.93,0.00027569,2]
[341629445,1731046236045,-500.0,0.00027569,2]
[341629446,1731046236055,-504.09,0.00027569,2]
[341629447,1731046236065,-537.78,0.00027569,2]
[341629448,1731046236075,-500.0,0.00027569,2]
[341629449,1731046236087,-500.0,0.00027569,2]
[341629450,1731046236097,-500.0,0.00027569,2]
[341629451,1731046236106,-500.0,0.0002757,2]
[341629452,1731046236115,-549.75,0.0002757,2]
[341629453,1731046236124,-500.0,0.0002757,2]
[341629454,1731046236135,-500.0,0.0002757,2]
[341629455,1731046236144,-500.0,0.0002757,2]
[341629456,1731046236155,-500.0,0.0002757,2]
[341629457,1731046236165,-500.0,0.0002757,2]
[341629458,1731046236175,-500.0,0.0002757,2]
[341629459,1731046236184,-500.0,0.0002757,2]
[341629460,1731046236193,-258.16677455,0.0002757,2]
[341629461,1731046236202,-155.45469238,0.00027571,2]
[341629462,1731046236212,-320.68565886,0.00027571,2]
[341629463,1731046236221,-978.005,0.00027595,17]
[341629464,1731046236230,-965.69,0.000276,2]
[341629465,1731046236239,-965.69,0.000276,2]
[341629466,1731046236248,-965.69,0.000276,2]
[341629467,1731046236258,-965.69,0.000276,2]
[341629468,1731046236267,-914.16,0.000276,2]
[341629469,1731046236277,-1672.65,0.000276,2]
[341629470,1731046236286,-3788.7165,0.00027633,2]
[341629471,1731046236295,-389.1012566,0.00027636,2]
[341629472,1731046236304,-500.0,0.00027671,2]
[341629473,1731046236314,-698.77,0.00027671,2]
[341629474,1731046236323,-500.0,0.00027671,2]
[341629475,1731046236334,-500.0,0.00027671,2]
[341629476,1731046236343,-213.1863328,0.00027671,2]
[341629477,1731046236353,-500.0,0.00027671,2]
[341629478,1731046236362,-500.0,0.00027671,2]
[341629479,1731046236371,-500.0,0.00027671,2]
[341629480,1731046236381,-500.0,0.00027671,2]
[341629481,1731046236390,-500.0,0.00027671,2]
[341629482,1731046236400,-300.03805215,0.00027671,2]
[341629483,1731046236410,-500.0,0.00027671,2]
[341629484,1731046236420,-500.0,0.00027671,2]
[341629485,1731046236430,-500.0,0.00027671,2]
[341629486,1731046236439,-500.0,0.00027671,2]
[341629487,1731046236448,-500.0,0.00027671,2]
[341629488,1731046236458,-500.0,0.00027671,2]
[341629489,1731046236468,-391.2,0.00027671,2]
[341629490,1731046236478,-150.99863439,0.00027671,2]
[341629491,1731046236489,-500.0,0.00027671,2]
[341629492,1731046236499,-500.0,0.00027671,2]
[341629493,1731046236509,-500.0,0.00027671,2]
[341629494,1731046236519,-500.0,0.00027671,2]
[341629495,1731046236530,-500.0,0.00027671,2]
[341629496,1731046236539,-500.0,0.00027671,2]
[341629497,1731046236551,-500.0,0.00027671,2]
[341629498,1731046236561,-500.0,0.00027671,2]
[341629499,1731046236574,-156.77,0.00027671,2]
[341629500,1731046236583,-500.0,0.00027671,2]
[341629501,1731046236593,-500.0,0.00027671,2]
[341629502,1731046236603,-500.0,0.00027671,2]
[341629503,1731046236613,-500.0,0.00027671,2]
[341629504,1731046236623,-500.0,0.00027671,2]
[341629505,1731046236634,-500.0,0.00027671,2]
[341629506,1731046236645,-500.0,0.00027671,2]
[341629507,1731046236656,-500.0,0.00027671,2]
[341629508,1731046236667,-500.0,0.00027671,2]
[341629509,1731046236676,-500.0,0.00027671,2]
[341629510,1731046236686,-493.10654494,0.00027671,2]
[341629511,1731046236696,-500.0,0.00027671,2]
[341629512,1731046236706,-500.0,0.00027671,2]
[341629513,1731046236715,-500.0,0.00027671,2]
[341629514,1731046236725,-500.0,0.00027671,2]
[341629515,1731046236736,-753.94,0.00027671,2]
[341629516,1731046236747,-500.0,0.00027671,2]
[341629517,1731046236757,-500.0,0.00027671,2]
[341629518,1731046236768,-500.0,0.00027671,2]
[341629519,1731046236778,-500.0,0.00027671,2]
[341629520,1731046236787,-500.0,0.00027671,2]
[341629521,1731046236797,-500.0,0.00027671,2]
[341629522,1731046236807,-500.0,0.00027671,2]
[341629523,1731046236816,-500.0,0.00027671,2]
[341629524,1731046236826,-500.0,0.00027671,2]
[341629525,1731046236836,-500.0,0.00027671,2]
[341629526,1731046236845,-500.0,0.00027671,2]
[341629527,1731046236855,-506.31,0.00027671,2]
[341629528,1731046236865,-500.0,0.00027671,2]
[341629529,1731046236874,-500.0,0.00027671,2]
[341629530,1731046236884,-1254.66,0.00027671,2]
[341629531,1731046236894,-500.0,0.00027671,2]
[341629532,1731046236904,-2083.38,0.00027671,2]
[341629533,1731046236913,-941.1,0.00027671,2]
[341629534,1731046236922,-500.0,0.00027671,2]
[341629535,1731046236932,-500.0,0.00027671,2]
[341629536,1731046236942,-500.0,0.00027671,2]
[341629537,1731046236952,-576.82227247,0.00027671,2]
[341629538,1731046236961,-500.0,0.00027671,2]
[341629539,1731046236971,-500.0,0.00027671,2]
[341629540,1731046236980,-533.93,0.00027671,2]
[341629541,1731046236990,-500.0,0.00027671,2]
[341629542,1731046237000,-500.0,0.00027671,2]
[341629543,1731046237009,-500.0,0.00027671,2]
[341629544,1731046237019,-988.84,0.00027671,2]
[341629545,1731046237030,-707.91,0.00027671,2]
[341629546,1731046237039,-500.0,0.00027671,2]
[341629547,1731046237049,-500.0,0.00027671,2]
[341629548,1731046237059,-500.0,0.00027671,2]
[341629549,1731046237069,-579.34,0.00027671,2]
[341629550,1731046237079,-500.0,0.00027671,2]
[341629551,1731046237092,-681.33,0.00027671,2]
[341629552,1731046237101,-408.51236497,0.00027671,2]
[341629553,1731046237111,-500.0,0.00027671,2]
[341629554,1731046237121,-732.9,0.00027671,2]
[341629555,1731046237131,-1398.79,0.00027671,2]
[341629556,1731046237141,-706.94,0.00027671,2]
[341629557,1731046237151,-750.58,0.00027671,2]
[341629558,1731046237161,-500.0,0.00027671,2]
[341629559,1731046237172,-500.0,0.00027671,2]
[341629560,1731046237182,-500.0,0.00027671,2]
[341629561,1731046237191,-1227.15,0.00027671,2]
[341629562,1731046237201,-500.0,0.00027671,2]
[341629563,1731046237211,-963.74,0.00027671,2]
[341629564,1731046237220,-7883.36,0.00027671,2]
[341629565,1731046237230,-469.01585633,0.00027671,2]
[341629566,1731046237240,-500.0,0.00027671,2]
[341629567,1731046237250,-579.52,0.00027671,2]
[341629568,1731046237260,-3067.2,0.00027671,2]
[341629569,1731046237270,-500.0,0.00027671,2]
[341629570,1731046237284,-500.0,0.00027671,2]
[341629571,1731046237294,-500.0,0.00027671,2]
[341629572,1731046237304,-621.61,0.00027671,2]
[341629573,1731046237314,-500.0,0.00027671,2]
[341629574,1731046237324,-500.0,0.00027671,2]
[341629575,1731046237334,-516.77,0.00027671,2]
[341629576,1731046237344,-500.0,0.00027671,2]
[341629577,1731046237354,-1677.13,0.00027671,2]
[341629578,1731046237364,-500.0,0.00027671,2]
[341629579,1731046237374,-500.0,0.00027671,2]
[341629580,1731046237384,-689.41,0.00027671,2]
[341629581,1731046237394,-500.0,0.00027671,2]
[341629582,1731046237404,-1340.92,0.00027671,2]
[341629583,1731046237414,-500.0,0.00027671,2]
[341629584,1731046237424,-500.0,0.00027671,2]
[341629585,1731046237434,-500.0,0.00027671,2]
[341629586,1731046237444,-1265.13,0.00027671,2]
[341629587,1731046237454,-981.89,0.00027671,2]
[341629588,1731046237463,-500.0,0.00027671,2]
[341629589,1731046237473,-500.0,0.00027671,2]
[341629590,1731046237483,-1000.0,0.00027671,2]
[341629591,1731046237493,-500.0,0.00027671,2]
[341629592,1731046237503,-500.0,0.00027671,2]
[341629593,1731046237513,-500.0,0.00027671,2]
[341629594,1731046237522,-500.0,0.00027671,2]
[341629595,1731046237538,-500.0,0.00027671,2]
[341629596,1731046237548,-696.19,0.00027671,2]
[341629597,1731046237558,-500.0,0.00027671,2]
[341629598,1731046237567,-500.0,0.00027671,2]
[341629599,1731046237577,-596.30611096,0.00027671,2]
[341629618,1731046238513,-190.00936793,0.00027259,2]
[341629620,1731046238523,-1090.0,0.00027396,2]
[341629622,1731046238534,-500.0,0.00027397,2]
[341629625,1731046238544,-576.29388904,0.00027671,2]
[341629627,1731046238555,-500.0,0.00027671,2]
[341629629,1731046238564,-500.0,0.00027671,2]
[341629631,1731046238574,-502.41,0.00027671,2]
[341629633,1731046238584,-500.0,0.00027671,2]
[341629636,1731046238594,-4473.88,0.00027671,2]
[341629639,1731046238604,-500.0,0.00027671,2]
[341629642,1731046238614,-868.39,0.00027671,2]
[341629645,1731046238623,-500.0,0.00027671,2]
[341629648,1731046238632,-500.0,0.00027671,2]
[341629651,1731046238642,-586.88,0.00027671,2]
[341629654,1731046238652,-500.0,0.00027671,2]
[341629657,1731046238662,-1085.63,0.00027671,2]
[341629659,1731046238672,-500.0,0.00027671,2]
[341629661,1731046238681,-500.0,0.00027671,2]
[341629663,1731046238691,-2774.89,0.00027671,2]
[341629666,1731046238701,-500.0,0.00027671,2]
[341629668,1731046238711,-856.35,0.00027671,2]
[341629670,1731046238721,-500.0,0.00027671,2]
[341629672,1731046238730,-1721.24755866,0.00027671,2]
[341629674,1731046238742,-71.44244134,0.00027671,2]
[341629676,1731046238752,-500.0,0.00027671,2]
[341629678,1731046238762,-500.0,0.00027671,2]
[341629680,1731046238771,-500.0,0.00027671,2]
[341629682,1731046238784,-748.65,0.00027671,2]
[341629684,1731046238796,-951.84,0.00027671,2]
[341629686,1731046238808,-500.0,0.00027671,2]
[341629711,1731046239027,-500.0,0.00027671,2]
[341629714,1731046239047,-2205.58355866,0.00027671,2]
[341629716,1731046239062,-183.91644134,0.00027671,2]
[341629718,1731046239071,-500.0,0.00027671,2]
[341629720,1731046239081,-500.0,0.00027671,2]
[341629722,1731046239096,-276.08355866,0.00027671,2]
[341629809,1731046240012,-359.40644134,0.00027671,2]
[341629811,1731046240022,-400.10355866,0.00027671,2]
[341629813,1731046240035,-219.38644134,0.00027671,2]
[341629815,1731046240044,-1203.28,0.00027671,2]
[341629817,1731046240053,-607.11,0.00027671,2]
[341629820,1731046240064,-231.64568156,0.00027671,2]
[341629822,1731046240074,-500.0,0.00027671,2]
[341629823,1731046240086,-680.13,0.00027671,2]
[341629826,1731046240097,-500.0,0.00027671,2]
[341629827,1731046240106,-786.66,0.00027671,2]
[341629829,1731046240116,-500.0,0.00027671,2]
[341629831,1731046240126,-263.93509383,0.00027671,2]
[341630140,1731046243131,-500.0,0.00027397,2]
[341630143,1731046243141,-500.0,0.00027397,2]
[341630145,1731046243151,-1150.1,0.00027397,2]
[341630147,1731046243160,-500.0,0.00027569,2]
[341630149,1731046243172,-236.06490617,0.00027671,2]
[341630151,1731046243182,-500.0,0.00027671,2]
[341630153,1731046243191,-500.0,0.00027671,2]
[341630155,1731046243200,-500.0,0.00027671,2]
[341630157,1731046243209,-2174.59,0.00027671,2]
[341630159,1731046243218,-1382.45,0.00027671,2]
[341630161,1731046243227,-500.0,0.00027671,2]
[341630163,1731046243236,-500.0,0.00027671,2]
[341630165,1731046243246,-500.0,0.00027671,2]
[341630167,1731046243255,-500.0,0.00027671,2]
[341630169,1731046243264,-500.0,0.00027671,2]
[341630171,1731046243273,-500.0,0.00027671,2]
[341630173,1731046243288,-500.0,0.00027671,2]
[341630175,1731046243297,-1150.1,0.00027671,2]
[341630177,1731046243307,-726.32637044,0.00027699,2]
[341630179,1731046243316,-411.20228448,0.000277,2]
[341630181,1731046243328,-1576.94771552,0.000277,2]
[341630183,1731046243338,-408.26581239,0.000277,2]
[341630185,1731046243347,-398.0,0.000277,11]
[341630187,1731046243356,-254.096671,0.000277,2]
[341630189,1731046243365,-196.0,0.000277,11]
[341630191,1731046243375,-912.49,0.00027732,2]
[341630193,1731046243384,-967.72,0.00027732,2]
[341630195,1731046243394,-1486.98,0.00027732,2]
[341630197,1731046243403,-500.0,0.00027732,2]
[341630199,1731046243412,-596.36060966,0.00027733,2]
[341630201,1731046243422,-200.0,0.00027733,2]
[341630203,1731046243431,-500.0,0.00027733,2]
[341630205,1731046243441,-500.0,0.00027733,2]
[341630207,1731046243450,-263.64342248,0.00027733,2]
[341630210,1731046243469,-236.35657752,0.00027733,2]
[341630212,1731046243478,-500.0,0.00027733,2]
[341630214,1731046243487,-500.0,0.00027733,2]
[341630216,1731046243497,-500.0,0.00027733,2]
[341630218,1731046243507,-500.0,0.00027733,2]
[341630220,1731046243516,-500.0,0.00027733,2]
[341630222,1731046243525,-500.0,0.00027733,2]
[341630224,1731046243538,-500.0,0.00027733,2]
[341630226,1731046243551,-500.0,0.00027733,2]
[341630229,1731046243560,-500.0,0.00027733,2]
[341630230,1731046243569,-516.24,0.00027733,2]
[341630232,1731046243579,-500.0,0.00027733,2]
[341630235,1731046243588,-500.0,0.00027733,2]
[341630236,1731046243597,-500.0,0.00027733,2]
[341630239,1731046243606,-500.0,0.00027733,2]
[341630241,1731046243616,-500.0,0.00027733,2]
[341630243,1731046243625,-500.0,0.00027733,2]
[341630244,1731046243635,-500.0,0.00027733,2]
[341630246,1731046243644,-500.0,0.00027733,2]
[341630248,1731046243654,-500.0,0.00027733,2]
[341630250,1731046243663,-500.0,0.00027733,2]
[341630252,1731046243673,-619.99,0.00027733,2]
[341630255,1731046243682,-704.69,0.00027733,2]
[341630256,1731046243691,-676.22,0.00027733,2]
[341630259,1731046243701,-500.0,0.00027733,5]
[341630260,1731046243710,-500.0,0.00027733,2]
[341630262,1731046243720,-500.0,0.00027733,2]
[341630265,1731046243729,-500.0,0.00027733,2]
[341630266,1731046243738,-500.0,0.00027733,2]
[341630268,1731046243747,-500.0,0.00027733,2]
[341630270,1731046243757,-500.0,0.00027733,2]
[341630272,1731046243766,-500.0,0.00027733,2]
[341630274,1731046243776,-200.0,0.00027733,2]
[341630276,1731046243787,-500.0,0.00027733,2]
[341630278,1731046243796,-500.0,0.00027733,2]
[341630280,1731046243806,-500.0,0.00027733,2]
[341630282,1731046243815,-500.0,0.00027733,2]
[341630285,1731046243825,-500.0,0.00027733,2]
[341630287,1731046243836,-500.0,0.00027733,2]
[341630289,1731046243846,-500.0,0.00027733,2]
[341630291,1731046243855,-300.0,0.00027733,2]
[341630293,1731046243865,-500.0,0.00027733,2]
[341630295,1731046243874,-500.0,0.00027733,2]
[341630297,1731046243884,-617.38,0.00027733,2]
[341630298,1731046243893,-500.0,0.00027733,2]
[341630300,1731046243903,-403.13598551,0.00027733,2]
[341630302,1731046243912,-500.0,0.00027733,2]
[341630304,1731046243921,-500.0,0.00027733,2]
[341630306,1731046243931,-500.0,0.00027733,2]
[341630308,1731046243940,-500.0,0.00027733,2]
[341630311,1731046243950,-500.0,0.00027733,2]
[341630313,1731046243960,-500.0,0.00027733,2]
[341630315,1731046243969,-500.0,0.00027733,2]
[341630317,1731046243979,-500.0,0.00027733,2]
[341630319,1731046243989,-500.0,0.00027733,2]
[341630321,1731046243999,-500.0,0.00027733,2]
[341630323,1731046244008,-500.0,0.00027733,2]
[341630325,1731046244018,-500.0,0.00027733,2]
[341630327,1731046244027,-500.0,0.00027733,2]
[341630329,1731046244039,-3445.4149662,0.00027762,2]
[341630331,1731046244048,-2541.5499265,0.00027762,2]
[341630332,1731046244058,-8406.6105612,0.00027781,2]
[341630335,1731046244068,-3745.95954903,0.00027781,2]
[341630337,1731046244078,-154.491,0.000278,4]
[341630339,1731046244090,-320.6856588,0.00027804,2]
[341630341,1731046244203,-263.63917367,0.00027843,2]
[341630342,1731046244213,-500.0,0.00027843,2]
[341630345,1731046244223,-500.0,0.00027843,2]
[341630346,1731046244232,-500.0,0.00027843,2]
[341630348,1731046244241,-168.92683291,0.00027843,2]
[341630350,1731046244250,-500.0,0.00027843,2]
[341630352,1731046244260,-500.0,0.00027843,2]
[341630354,1731046244269,-544.64,0.00027843,2]
[341630356,1731046244278,-500.0,0.00027843,2]
[341630359,1731046244293,-500.0,0.00027843,2]
[341630361,1731046244303,-500.0,0.00027843,2]
[341630362,1731046244312,-852.37,0.00027843,2]
[341630365,1731046244322,-500.0,0.00027843,2]
[341630367,1731046244332,-500.0,0.00027843,2]
[341630369,1731046244341,-500.0,0.00027843,2]
[341630371,1731046244350,-525.7,0.00027843,2]
[341630373,1731046244360,-500.0,0.00027843,2]
[341630375,1731046244369,-500.0,0.00027843,2]
[341630377,1731046244378,-500.0,0.00027843,2]
[341630379,1731046244388,-500.0,0.00027843,2]
[341630381,1731046244397,-500.0,0.00027843,2]
[341630383,1731046244406,-500.0,0.00027843,2]
[341630385,1731046244415,-500.0,0.00027843,2]
[341630391,1731046244472,-581.61,0.00027843,2]
[341630393,1731046244482,-500.0,0.00027843,2]
[341630395,1731046244492,-500.0,0.00027843,2]
[341630397,1731046244502,-500.0,0.00027843,2]
[341630399,1731046244512,-500.0,0.00027843,2]
[341630401,1731046244521,-500.0,0.00027843,2]
[341630403,1731046244532,-500.0,0.00027843,2]
[341630405,1731046244542,-662.11,0.00027843,2]
[341630407,1731046244552,-500.0,0.00027843,2]
[341630409,1731046244562,-500.0,0.00027843,2]
[341630411,1731046244572,-592.13,0.00027843,2]
[341630414,1731046244583,-500.0,0.00027843,2]
[341630416,1731046244592,-500.0,0.00027843,2]
[341630417,1731046244603,-500.0,0.00027843,2]
[341630419,1731046244613,-500.0,0.00027843,2]
[341630421,1731046244623,-500.0,0.00027843,2]
[341630423,1731046244633,-500.0,0.00027843,2]
[341630425,1731046244642,-631.32,0.00027843,2]
[341630427,1731046244651,-500.0,0.00027843,2]
[341630429,1731046244661,-1017.54,0.00027843,2]
[341630431,1731046244670,-889.12,0.00027843,2]
[341630433,1731046244679,-500.0,0.00027843,2]
[341630435,1731046244688,-500.0,0.00027843,2]
[341630437,1731046244698,-500.0,0.00027843,2]
[341630439,1731046244707,-605.4,0.00027843,2]
[341630441,1731046244717,-500.0,0.00027843,2]
[341630443,1731046244726,-500.0,0.00027843,2]
[341630445,1731046244734,-500.0,0.00027843,2]
[341630448,1731046244744,-500.0,0.00027843,2]
[341630450,1731046244753,-500.0,0.00027843,2]
[341630452,1731046244763,-500.0,0.00027843,2]
[341630453,1731046244772,-500.0,0.00027843,2]
[341630455,1731046244781,-500.0,0.00027843,2]
[341630457,1731046244791,-500.0,0.00027843,2]
[341630459,1731046244800,-500.0,0.00027843,2]
[341630461,1731046244809,-500.0,0.00027843,2]
[341630463,1731046244818,-500.0,0.00027843,2]
[341630464,1731046244828,-756.06,0.00027843,2]
[341630465,1731046244838,-500.0,0.00027843,2]
[341630466,1731046244849,-1524.93,0.00027843,2]
[341630467,1731046244858,-500.0,0.00027843,2]
[341630468,1731046244868,-648.93,0.00027843,2]
[341630469,1731046244877,-500.0,0.00027843,2]
[341630470,1731046244886,-504.09,0.00027843,2]
[341630472,1731046244895,-537.78,0.00027843,2]
[341630474,1731046244904,-500.0,0.00027843,2]
[341630475,1731046244914,-500.0,0.00027843,2]
[341630477,1731046244923,-500.0,0.00027843,2]